bitfinex/quotes_BTCUSD_20260103
["timestamp","ask_amount","ask_price","bid_price","bid_amount"]
[1767414088194,0.0110791,90260.0,90255.0,0.06047467]
[1767414088400,0.01107922,90259.0,90255.0,0.04939496]
[1767414088604,0.01108,90258.0,90255.0,0.04939496]
[1767414088781,0.01108,90258.0,90255.0,0.06047467]
[1767414088984,0.01108,90258.0,90255.0,0.04939496]
[1767414089936,0.01108,90258.0,90255.0,0.06047467]
[1767414090345,0.01108,90258.0,90255.0,0.04939496]
[1767414090476,0.0110791,90260.0,90255.0,0.06047467]
[1767414090689,0.01107898,90261.0,90256.0,0.01107959]
[1767414090889,0.0221591,90260.0,90255.0,0.06047467]
[1767414091498,0.01107922,90259.0,90255.0,0.06047467]
[1767414092458,0.0221591,90260.0,90255.0,0.06047467]
[1767414093386,0.0221591,90260.0,90255.0,0.04939496]
[1767414093685,0.01107922,90259.0,90255.0,0.04939496]
[1767414094275,0.0221591,90260.0,90255.0,0.06047467]
[1767414095112,0.01107922,90259.0,90255.0,0.04939496]
[1767414095319,0.0221591,90260.0,90255.0,0.06047467]
[1767414096070,0.01108,90260.0,90256.0,0.01107959]
[1767414096357,0.0221591,90260.0,90255.0,0.06047467]
[1767414097237,0.01108,90260.0,90256.0,0.01107959]
[1767414097539,0.0221591,90260.0,90255.0,0.06047467]
[1767414099063,0.01108,90260.0,90256.0,0.05934017]
[1767414099266,0.01108,90260.0,90257.0,0.05934005]
[1767414099812,0.06646668,90271.0,90263.0,0.01107873]
[1767414100085,0.06646668,90271.0,90260.0,0.0110791]
[1767414100086,0.01107824,90267.0,90260.0,0.25430592]
[1767414100302,0.01108,90267.0,90262.0,0.04826058]
[1767414100502,0.01107836,90266.0,90262.0,0.04826058]
[1767414100700,0.02215824,90267.0,90262.0,0.04826058]
[1767414100905,0.01107836,90266.0,90262.0,0.04826058]
[1767414101321,0.01070579,90266.0,90262.0,0.04826058]
[1767414101529,0.00961062,90266.0,90262.0,0.04826058]
[1767414101737,0.00924321,90266.0,90262.0,0.04826058]
[1767414102780,0.01108,90267.0,90262.0,0.05933943]
[1767414102981,0.01108,90267.0,90264.0,0.04826058]
[1767414105116,0.01108,90266.0,90264.0,0.04826058]
[1767414107310,0.011078,90269.0,90264.0,0.04826058]
[1767414107531,0.01108,90266.0,90264.0,0.04826058]
[1767414107737,0.05538801,90273.0,90266.0,0.01107836]
[1767414107942,0.02215763,90272.0,90267.0,0.01107824]
[1767414109034,0.06646372,90275.0,90268.0,0.04826058]
[1767414109035,0.01107726,90275.0,90268.0,0.04826058]
[1767414109150,0.01108,90273.0,90268.0,0.04726158]
[1767414109356,0.01107763,90272.0,90268.0,0.04726158]
[1767414109686,0.01107775,90271.0,90268.0,0.04726158]
[1767414110658,0.07754507,90273.0,90268.0,0.04726158]
[1767414110659,0.0221575,90273.0,90271.0,0.000999]
[1767414110823,0.01108,90273.0,90271.0,0.000999]
[1767414111251,0.01107738,90274.0,90269.0,0.05933858]
[1767414111385,0.0221575,90273.0,90269.0,0.04826058]
[1767414112714,0.01108,90273.0,90269.0,0.04826058]
[1767414112919,0.01108,90273.0,90269.0,0.05933858]
[1767414113117,0.01107763,90272.0,90269.0,0.04826058]
[1767414113295,0.0221575,90273.0,90269.0,0.04826058]
[1767414113483,0.01107763,90272.0,90269.0,0.04826058]
[1767414114318,0.01108,90273.0,90269.0,0.05933858]
[1767414114644,0.0221575,90273.0,90269.0,0.04826058]
[1767414114991,0.01108,90273.0,90270.0,0.05933845]
[1767414115201,0.010081,90273.0,90270.0,0.05933845]
[1767414115439,0.01107714,90276.0,90273.0,0.04826058]
[1767414115634,0.01108,90275.0,90273.0,0.04826058]
[1767414117132,0.01108,90275.0,90271.0,0.05933833]
[1767414117994,0.01107714,90276.0,90271.0,0.05933833]
[1767414118192,0.01108,90275.0,90271.0,0.05933833]
[1767414118533,0.02215726,90275.0,90271.0,0.04826058]
[1767414121427,0.01108,90275.0,90271.0,0.05933833]
[1767414121632,0.06710784,90278.0,90274.0,0.04945721]
[1767414121769,0.01107701,90277.0,90274.0,0.04945721]
[1767414123027,0.01107714,90276.0,90272.0,0.04945721]
[1767414123211,0.01107714,90276.0,90268.0,0.01107812]
[1767414123212,0.01207638,90274.0,90268.0,0.01107812]
[1767414123387,0.0110775,90273.0,90268.0,0.01107812]
[1767414124011,0.01107775,90271.0,90266.0,0.01107836]
[1767414124180,0.01107763,90272.0,90268.0,0.01107812]
[1767414124380,0.01107763,90272.0,90266.0,0.06053557]
[1767414124613,0.0110775,90273.0,90267.0,0.01107824]
[1767414124780,0.01107775,90271.0,90266.0,0.06053557]
[1767414124977,0.01107763,90272.0,90266.0,0.04945721]
[1767414125181,0.01107775,90271.0,90267.0,0.01107824]
[1767414125411,0.01107763,90272.0,90267.0,0.01107824]
[1767414126003,0.01107763,90272.0,90266.0,0.04945721]
[1767414126224,0.01107763,90272.0,90267.0,0.01107824]
[1767414126631,0.0110775,90273.0,90268.0,0.01107812]
[1767414126827,0.0110775,90273.0,90267.0,0.01107824]
[1767414126828,0.01107763,90272.0,90267.0,0.01107824]
[1767414127033,0.01107763,90272.0,90266.0,0.06053557]
[1767414127232,0.01107763,90272.0,90267.0,0.01107824]
[1767414128150,0.01107763,90272.0,90266.0,0.06053557]
[1767414128151,0.01107775,90271.0,90266.0,0.06053557]
[1767414128348,0.01107775,90271.0,90267.0,0.01107824]
[1767414128491,0.01107763,90272.0,90267.0,0.01107824]
[1767414128691,0.01107873,90263.0,90255.0,0.06053721]
[1767414128933,0.01107873,90263.0,90250.0,0.01108033]
[1767414128934,0.01107922,90259.0,90250.0,0.01108033]
[1767414129134,0.06011752,90255.0,90248.0,0.01108057]
[1767414129295,0.06011752,90255.0,90247.0,0.05540309]
[1767414129296,0.05790165,90255.0,90247.0,0.03325082]
[1767414129493,0.04903781,90255.0,90250.0,0.01108033]
[1767414129978,0.06011752,90255.0,90249.0,0.01108045]
[1767414130385,0.06011752,90255.0,90250.0,0.01108033]
[1767414130537,0.01107984,90254.0,90250.0,0.01108033]
[1767414130738,0.06011752,90255.0,90247.0,0.0110807]
[1767414130739,0.01108008,90252.0,90247.0,0.0110807]
[1767414131141,0.01107984,90254.0,90247.0,0.0110807]
[1767414131426,0.01108008,90252.0,90247.0,0.0110807]
[1767414131604,0.01108008,90252.0,90246.0,0.01108082]
[1767414131909,0.01107959,90256.0,90246.0,0.01108082]
[1767414131910,0.05539815,90256.0,90248.0,0.01108057]
[1767414132120,0.01107996,90253.0,90248.0,0.01108057]
[1767414132874,0.01107984,90254.0,90249.0,0.01108045]
[1767414133075,0.01107996,90253.0,90247.0,0.0110807]
[1767414133327,0.01107996,90253.0,90249.0,0.06053766]
[1767414133532,0.01107996,90253.0,90249.0,0.04945721]
[1767414134378,0.01108008,90252.0,90249.0,0.04945721]
[1767414134612,0.01107996,90253.0,90249.0,0.04945721]
[1767414134796,0.01108008,90252.0,90249.0,0.04945721]
[1767414135145,0.06648098,90252.0,90249.0,0.04845821]
[1767414135901,0.01108008,90252.0,90249.0,0.04845821]
[1767414136106,0.01107984,90254.0,90252.0,0.000999]
[1767414136303,0.05539576,90260.0,90252.0,0.04945721]
[1767414136521,0.05539576,90260.0,90249.0,0.01108045]
[1767414136522,0.01107824,90267.0,90261.0,0.01107898]
[1767414136865,0.01107824,90267.0,90262.0,0.04945721]
[1767414136866,0.02215836,90266.0,90262.0,0.04945721]
[1767414137067,0.01107849,90265.0,90262.0,0.04945721]
[1767414139681,0.02215836,90266.0,90262.0,0.04945721]
[1767414139876,0.01107836,90266.0,90262.0,0.04945721]
[1767414140122,0.02215836,90266.0,90262.0,0.04945721]
[1767414140273,0.01108,90266.0,90262.0,0.04945721]
[1767414140473,0.01107849,90265.0,90262.0,0.04945721]
[1767414141717,0.01107836,90266.0,90262.0,0.04945721]
[1767414141925,0.02215836,90266.0,90262.0,0.04945721]
[1767414142106,0.01107849,90265.0,90262.0,0.04945721]
[1767414142307,0.01108,90266.0,90262.0,0.06053606]
[1767414142826,0.01107849,90265.0,90262.0,0.04945721]
[1767414143126,0.02215836,90266.0,90262.0,0.04945721]
[1767414143351,0.01107836,90266.0,90262.0,0.04945721]
[1767414143491,0.02215836,90266.0,90262.0,0.04945721]
[1767414143957,0.01108,90266.0,90262.0,0.06053606]
[1767414144109,0.02215836,90266.0,90262.0,0.04945721]
[1767414144308,0.01107849,90265.0,90262.0,0.04945721]
[1767414144488,0.02215836,90266.0,90262.0,0.04945721]
[1767414145626,0.01107849,90265.0,90262.0,0.04945721]
[1767414146027,0.02215836,90266.0,90262.0,0.04945721]
[1767414147655,0.01107849,90265.0,90262.0,0.04945721]
[1767414148383,0.01108,90266.0,90262.0,0.06053606]
[1767414148586,0.02215836,90266.0,90262.0,0.04945721]
[1767414149731,0.01107849,90265.0,90262.0,0.04945721]
[1767414150299,0.02215836,90266.0,90262.0,0.04945721]
[1767414151569,0.01107849,90265.0,90262.0,0.04945721]
[1767414152488,0.01107885,90262.0,90257.0,0.04716965]
[1767414152689,0.01107898,90261.0,90252.0,0.04716965]
[1767414152911,0.01107935,90258.0,90253.0,0.05824961]
[1767414153120,0.01107935,90258.0,90253.0,0.04716965]
[1767414153331,0.01107922,90259.0,90254.0,0.05824949]
[1767414153519,0.01107922,90259.0,90254.0,0.04716965]
[1767414153929,0.01107935,90258.0,90254.0,0.01107984]
[1767414154145,0.01107922,90259.0,90254.0,0.01107984]
[1767414155331,0.01107935,90258.0,90253.0,0.01107996]
[1767414155867,0.13965861,90318.0,90253.0,0.01107996]
[1767414155868,0.06647278,90263.0,90258.0,0.000999]
[1767414156174,0.06647278,90263.0,90255.0,0.01107971]
[1767414156175,0.01107898,90261.0,90255.0,0.01107971]
[1767414156319,0.01107898,90261.0,90256.0,0.05824924]
[1767414157330,0.06647219,90266.0,90256.0,0.05824924]
[1767414157331,0.05539291,90265.0,90257.0,0.01107947]
[1767414158149,0.07755055,90266.0,90252.0,5.978e-05]
[1767414158150,0.0110791,90260.0,90252.0,0.06653997]
[1767414158355,0.01107947,90257.0,90252.0,5.978e-05]
[1767414158801,0.01107947,90257.0,90252.0,0.01113986]
[1767414159115,0.01107935,90258.0,90253.0,0.01107996]
[1767414159255,0.01107947,90257.0,90252.0,0.01113986]
[1767414159643,0.01107935,90258.0,90253.0,0.01107996]
[1767414159842,0.01107947,90257.0,90252.0,0.01113986]
[1767414160089,0.01107971,90255.0,90252.0,5.978e-05]
[1767414160243,0.05539962,90254.0,90252.0,5.978e-05]
[1767414160657,0.06643606,90255.0,90252.0,5.978e-05]
[1767414161555,0.01107971,90255.0,90252.0,5.978e-05]
[1767414163700,0.06647875,90255.0,90252.0,5.978e-05]
[1767414164391,0.01107971,90255.0,90252.0,5.978e-05]
[1767414168755,0.01107947,90257.0,90252.0,5.978e-05]
[1767414168956,0.01107959,90256.0,90252.0,5.978e-05]
[1767414169709,0.01107971,90255.0,90252.0,5.978e-05]
[1767414169894,0.05539982,90253.0,90252.0,5.978e-05]
[1767414170095,0.06647869,90255.0,90252.0,5.978e-05]
[1767414170500,0.01107971,90255.0,90252.0,5.978e-05]
[1767414171815,0.0553992,90254.0,90252.0,5.978e-05]
[1767414177519,0.0544002,90254.0,90252.0,5.978e-05]
[1767414178674,0.01107959,90256.0,90255.0,0.04716965]
[1767414178911,0.01107959,90256.0,90253.0,0.04716965]
[1767414180045,0.01107947,90257.0,90253.0,0.04716965]
[1767414180317,0.06647644,90258.0,90256.0,0.04936609]
[1767414181157,0.01107935,90258.0,90256.0,0.04936609]
[1767414181360,0.01107935,90258.0,90254.0,0.04936609]
[1767414181572,0.01107922,90259.0,90254.0,0.06044593]
[1767414181790,0.01107898,90261.0,90256.0,0.01107959]
[1767414182047,0.01107873,90263.0,90257.0,0.01107947]
[1767414182268,0.01107873,90263.0,90258.0,0.01107935]
[1767414182473,0.01107873,90263.0,90258.0,0.06044544]
[1767414183886,0.02215861,90264.0,90259.0,0.01107922]
[1767414184688,0.01108,90264.0,90260.0,0.0110791]
[1767414185030,0.02215861,90264.0,90258.0,0.06044544]
[1767414185800,0.01108,90264.0,90260.0,0.0110791]
[1767414186492,0.02215861,90264.0,90259.0,0.01107922]
[1767414186692,0.02215861,90264.0,90260.0,0.0110791]
[1767414186912,0.01107812,90268.0,90260.0,0.0110791]
[1767414187089,0.01107849,90265.0,90260.0,0.06647405]
[1767414187292,0.01107836,90266.0,90261.0,0.01107898]
[1767414187692,0.01107849,90265.0,90260.0,0.0110791]
[1767414187884,0.01108,90273.0,90265.0,0.01107849]
[1767414188079,0.01108,90273.0,90269.0,0.011078]
[1767414188554,0.01108,90273.0,90268.0,0.01107812]
[1767414188970,0.01108,90273.0,90269.0,0.011078]
[1767414189116,0.01107763,90272.0,90267.0,0.01107824]
[1767414189519,0.0221575,90273.0,90268.0,0.01107812]
[1767414189834,0.01107763,90272.0,90263.0,0.06044482]
[1767414190036,0.01107763,90272.0,90265.0,0.01107849]
[1767414190037,0.01107787,90270.0,90265.0,0.01107849]
[1767414190355,0.011078,90269.0,90264.0,0.01107861]
[1767414190581,0.01107812,90268.0,90258.0,0.01107935]
[1767414190729,0.000999,90264.0,90262.0,0.04936609]
[1767414191134,0.01107836,90266.0,90262.0,0.04936609]
[1767414191338,0.06646873,90268.0,90262.0,0.04936609]
[1767414191339,0.01107824,90267.0,90262.0,0.06044494]
[1767414191583,0.01107836,90266.0,90262.0,0.04936609]
[1767414191871,0.01107824,90267.0,90262.0,0.04936609]
[1767414192341,0.01107836,90266.0,90262.0,0.04936609]
[1767414192881,0.01107849,90265.0,90262.0,0.04936609]
[1767414193513,0.01107836,90266.0,90262.0,0.04936609]
[1767414194284,0.05036149,90278.0,90261.0,0.01107898]
[1767414194285,0.01107738,90274.0,90268.0,0.01107812]
[1767414194744,0.01107726,90275.0,90269.0,0.011078]
[1767414194915,0.01107714,90276.0,90271.0,0.01107775]
[1767414195319,0.01107714,90276.0,90269.0,0.06646799]
[1767414195320,0.01107726,90275.0,90269.0,0.011078]
[1767414195519,0.01107714,90276.0,90271.0,0.01107775]
[1767414195777,0.01107714,90276.0,90270.0,0.01107787]
[1767414195960,0.01107714,90276.0,90271.0,0.01107775]
[1767414196099,0.01107701,90277.0,90272.0,0.01107763]
[1767414196799,0.01107714,90276.0,90270.0,0.01107787]
[1767414197903,0.01107701,90277.0,90270.0,0.01107787]
[1767414198025,0.01107714,90276.0,90270.0,0.01107787]
[1767414198225,0.00064629,90278.0,90271.0,0.01107775]
[1767414198439,0.00064629,90278.0,90272.0,0.01107763]
[1767414198440,0.01107701,90277.0,90272.0,0.01107763]
[1767414198854,0.00064629,90278.0,90274.0,0.01107738]
[1767414199081,0.00064629,90278.0,90275.0,0.01107726]
[1767414200197,0.00064629,90278.0,90275.0,0.06646304]
[1767414201691,0.00064629,90278.0,90277.0,0.05538509]
[1767414201896,0.01108,90281.0,90278.0,0.01107689]
[1767414202865,0.01108,90281.0,90277.0,0.01107701]
[1767414203090,0.000999,90278.0,90276.0,0.01107714]
[1767414203207,0.02215652,90281.0,90276.0,0.01107714]
[1767414203606,0.01107665,90280.0,90275.0,0.01107726]
[1767414203856,0.01107677,90279.0,90274.0,0.01107738]
[1767414206923,0.01107665,90280.0,90275.0,0.01107726]
[1767414207140,0.01107665,90280.0,90274.0,0.01107738]
[1767414207141,0.01107677,90279.0,90274.0,0.01107738]
[1767414207311,0.01107665,90280.0,90274.0,0.01107738]
[1767414207312,0.01107665,90280.0,90275.0,0.01107726]
[1767414207716,0.01107665,90280.0,90276.0,0.01107714]
[1767414207919,0.01107652,90281.0,90276.0,0.01107714]
[1767414208274,0.05538309,90281.0,90274.0,0.01107738]
[1767414208461,0.000999,90276.0,90274.0,0.01107738]
[1767414208652,0.000999,90276.0,90273.0,0.0110775]
[1767414208830,0.01107677,90279.0,90274.0,0.01107738]
[1767414210359,0.01107689,90278.0,90273.0,0.0110775]
[1767414210743,0.01107689,90278.0,90272.0,0.01107763]
[1767414211056,0.01107701,90277.0,90272.0,0.01107763]
[1767414211422,0.01207663,90272.0,90270.0,0.01108]
[1767414211604,0.04855649,90271.0,90269.0,0.01108]
[1767414212003,0.04855649,90271.0,90269.0,0.0056863]
[1767414212221,0.04855649,90271.0,90269.0,0.01108]
[1767414212856,0.06646512,90273.0,90269.0,0.01108]
[1767414213029,0.06646512,90273.0,90269.0,0.06095156]
[1767414213266,0.01107763,90272.0,90269.0,0.06095156]
[1767414213485,0.01107763,90272.0,90269.0,0.01108]
[1767414213665,0.01107763,90272.0,90269.0,0.06095156]
[1767414219026,0.22153217,90281.0,90269.0,0.06095156]
[1767414219626,0.05538509,90277.0,90269.0,0.06095156]
[1767414220191,0.01107738,90274.0,90269.0,0.06095156]
[1767414220395,0.0110775,90273.0,90270.0,0.04987156]
[1767414221043,0.01107714,90276.0,90271.0,0.06094931]
[1767414221654,0.01107726,90275.0,90271.0,0.04987156]
[1767414222318,0.01107738,90274.0,90271.0,0.04987156]
[1767414229603,0.01107738,90274.0,90269.0,0.022158]
[1767414229949,0.01107738,90274.0,90269.0,0.07202956]
[1767414230363,0.01107714,90276.0,90270.0,0.06094943]
[1767414230585,0.01107714,90276.0,90269.0,0.022158]
[1767414230586,0.01207687,90270.0,90263.0,0.04987156]
[1767414230776,0.06746683,90270.0,90263.0,0.01108]
[1767414230952,0.01107812,90268.0,90263.0,0.02215873]
[1767414231195,0.01107812,90268.0,90263.0,0.07203029]
[1767414231405,0.01107775,90271.0,90266.0,0.01107836]
[1767414231612,0.01107787,90270.0,90265.0,0.01107849]
[1767414232231,0.01107775,90271.0,90265.0,0.01107849]
[1767414232441,0.01107775,90271.0,90266.0,0.01107836]
[1767414232625,0.01107763,90272.0,90267.0,0.01107824]
[1767414232862,0.01107738,90274.0,90269.0,0.011078]
[1767414233560,0.01107726,90275.0,90269.0,0.011078]
[1767414233825,0.01107726,90275.0,90270.0,0.01107787]
[1767414234468,0.01107726,90275.0,90263.0,0.28252464]
[1767414234469,0.0110775,90273.0,90266.0,0.01107836]
[1767414234648,0.011078,90269.0,90264.0,0.01107861]
[1767414234881,0.01107787,90270.0,90265.0,0.01107849]
[1767414235091,0.01107775,90271.0,90265.0,0.01107849]
[1767414235512,0.01107775,90271.0,90266.0,0.06094992]
[1767414236393,0.01107787,90270.0,90266.0,0.06094992]
[1767414236775,0.01107775,90271.0,90266.0,0.06094992]
[1767414237304,0.01107763,90272.0,90267.0,0.01107824]
[1767414237597,0.01107763,90272.0,90268.0,0.01107812]
[1767414237820,0.02215677,90279.0,90269.0,0.011078]
[1767414237821,0.01108,90279.0,90269.0,0.011078]
[1767414237998,0.01108,90279.0,90270.0,0.01107787]
[1767414237999,0.01107726,90275.0,90270.0,0.01107787]
[1767414238156,0.01107714,90276.0,90271.0,0.01107775]
[1767414238538,0.01107726,90275.0,90271.0,0.01107775]
[1767414238766,0.01107726,90275.0,90270.0,0.01107787]
[1767414238960,0.01107714,90276.0,90270.0,0.06094943]
[1767414239192,0.01157237,90278.0,90270.0,0.06094943]
[1767414239193,0.01107701,90277.0,90270.0,0.06094943]
[1767414239499,0.01107701,90277.0,90272.0,0.01107763]
[1767414239906,0.00049548,90278.0,90273.0,0.05538754]
[1767414240292,0.01107542,90290.0,90282.0,0.0110764]
[1767414240474,0.04607937,90289.0,90280.0,0.24312863]
[1767414240669,0.03499949,90288.0,90283.0,0.01107628]
[1767414240919,0.03499949,90288.0,90282.0,0.0110764]
[1767414240920,0.01108,90287.0,90282.0,0.0110764]
[1767414241094,0.01108,90287.0,90283.0,0.05990736]
[1767414241295,0.02215579,90287.0,90283.0,0.04883108]
[1767414241633,0.01107591,90286.0,90283.0,0.04883108]
[1767414241956,0.02215579,90287.0,90283.0,0.04783208]
[1767414242476,0.01108,90287.0,90283.0,0.05890836]
[1767414242721,0.02215579,90287.0,90282.0,0.0110764]
[1767414242924,0.01108,90287.0,90282.0,0.0110764]
[1767414243132,0.01107591,90286.0,90281.0,0.01107652]
[1767414243710,0.01108,90287.0,90283.0,0.01107628]
[1767414244006,0.01107591,90286.0,90281.0,0.01107652]
[1767414244651,0.01107603,90285.0,90280.0,0.01107665]
[1767414245311,0.01107591,90286.0,90281.0,0.0599076]
[1767414245476,0.01108,90287.0,90282.0,0.0110764]
[1767414245698,0.01107603,90285.0,90281.0,0.04883108]
[1767414245983,0.01107591,90286.0,90281.0,0.0599076]
[1767414246441,0.01107603,90285.0,90281.0,0.04883108]
[1767414246641,0.01107591,90286.0,90281.0,0.0599076]
[1767414246828,0.02215579,90287.0,90282.0,0.0110764]
[1767414247467,0.02215579,90287.0,90281.0,0.0599076]
[1767414247669,0.01108,90287.0,90284.0,0.01107615]
[1767414248081,0.01108,90287.0,90282.0,0.0110764]
[1767414248278,0.01108,90287.0,90283.0,0.01107628]
[1767414248494,0.01108,90287.0,90284.0,0.06645653]
[1767414248495,0.010081,90287.0,90284.0,0.06645653]
[1767414248649,0.010081,90287.0,90283.0,0.01107628]
[1767414249252,0.000999,90283.0,90282.0,0.04883108]
[1767414249499,0.01107603,90285.0,90282.0,0.04883108]
[1767414249892,0.0664568,90285.0,90282.0,0.04883108]
[1767414250291,0.0664568,90285.0,90282.0,0.04783208]
[1767414250670,0.0664568,90285.0,90282.0,0.03675208]
[1767414251585,0.01107628,90283.0,90279.0,0.04883108]
[1767414251987,0.0664568,90285.0,90279.0,0.05990785]
[1767414252324,0.01107615,90284.0,90279.0,0.05990785]
[1767414252470,0.01107628,90283.0,90279.0,0.04883108]
[1767414255150,0.01107615,90284.0,90279.0,0.05990785]
[1767414255363,0.01107603,90285.0,90279.0,0.05990785]
[1767414255561,0.01107615,90284.0,90279.0,0.05990785]
[1767414255776,0.01107603,90285.0,90279.0,0.05990785]
[1767414256326,0.01107603,90285.0,90280.0,0.01107665]
[1767414256559,0.01107603,90285.0,90280.0,0.05990773]
[1767414257167,0.01107628,90283.0,90276.0,0.01107714]
[1767414257331,0.01107652,90281.0,90277.0,0.04883108]
[1767414257534,0.01107665,90280.0,90277.0,0.04883108]
[1767414257762,0.0110764,90282.0,90277.0,0.04883108]
[1767414257968,0.01107652,90281.0,90277.0,0.04883108]
[1767414258327,0.01107665,90280.0,90277.0,0.04883108]
[1767414258727,0.01107652,90281.0,90277.0,0.04883108]
[1767414259421,0.0110764,90282.0,90277.0,0.05990809]
[1767414259627,0.00965559,90282.0,90277.0,0.05990809]
[1767414259830,0.01107665,90280.0,90277.0,0.04883108]
[1767414259975,0.01001214,90281.0,90277.0,0.04883108]
[1767414260392,0.00929828,90281.0,90277.0,0.04883108]
[1767414260775,0.00894985,90282.0,90277.0,0.05990809]
[1767414261198,0.00894985,90282.0,90277.0,0.04883108]
[1767414261199,0.01107652,90281.0,90277.0,0.04883108]
[1767414262523,0.01000599,90281.0,90277.0,0.04883108]
[1767414262821,0.00857646,90281.0,90277.0,0.04883108]
[1767414263637,0.0110764,90282.0,90277.0,0.05990809]
[1767414264703,0.01107652,90281.0,90277.0,0.04883108]
[1767414265086,0.01107628,90283.0,90277.0,0.05990809]
[1767414265937,0.01107652,90281.0,90277.0,0.04883108]
[1767414266437,0.01107628,90283.0,90277.0,0.05990809]
[1767414266756,0.01107628,90283.0,90279.0,0.04883108]
[1767414266962,0.01107615,90284.0,90279.0,0.04883108]
[1767414267164,0.02115679,90287.0,90283.0,0.000999]
[1767414267323,0.02115679,90287.0,90281.0,0.01107652]
[1767414268226,0.010081,90287.0,90281.0,0.01107652]
[1767414268396,0.009082,90287.0,90282.0,0.0110764]
[1767414268600,0.02015779,90287.0,90282.0,0.04506465]
[1767414268913,0.02015779,90287.0,90282.0,0.05614105]
[1767414269134,0.02015779,90287.0,90282.0,0.04506465]
[1767414269350,0.01107591,90286.0,90282.0,0.05614105]
[1767414269764,0.02015779,90287.0,90282.0,0.05614105]
[1767414269971,0.01107591,90286.0,90282.0,0.04406565]
[1767414270586,0.02015779,90287.0,90282.0,0.04406565]
[1767414270800,0.02015779,90287.0,90283.0,0.01107628]
[1767414270999,0.02015779,90287.0,90282.0,0.05514205]
[1767414272272,0.01107591,90286.0,90282.0,0.04406565]
[1767414273097,0.01107591,90286.0,90282.0,0.05514205]
[1767414273685,0.02015779,90287.0,90282.0,0.05514205]
[1767414273897,0.02015779,90287.0,90283.0,0.04565081]
[1767414275054,0.01107591,90286.0,90283.0,0.04565081]
[1767414275195,0.01107591,90286.0,90281.0,0.01107652]
[1767414275416,0.01107615,90284.0,90281.0,0.04565081]
[1767414277072,0.01107603,90285.0,90281.0,0.04565081]
[1767414277846,0.01107615,90284.0,90281.0,0.04565081]
[1767414282810,0.0664559,90286.0,90281.0,0.05672733]
[1767414282811,0.01107591,90286.0,90281.0,0.05672733]
[1767414282978,0.01107603,90285.0,90280.0,0.01107665]
[1767414283370,0.01107591,90286.0,90281.0,0.01107652]
[1767414284312,0.01107603,90285.0,90280.0,0.01107665]
[1767414284847,0.01107615,90284.0,90280.0,0.01107665]
[1767414285066,0.01107591,90286.0,90281.0,0.01107652]
[1767414285419,0.01107603,90285.0,90280.0,0.01107665]
[1767414285643,0.01107591,90286.0,90282.0,0.0110764]
[1767414286002,0.01107591,90286.0,90281.0,0.01107652]
[1767414286396,0.01107603,90285.0,90280.0,0.01107665]
[1767414287252,0.01107591,90286.0,90281.0,0.01107652]
[1767414288501,0.01107603,90285.0,90280.0,0.01107665]
[1767414288920,0.01107603,90285.0,90281.0,0.01107652]
[1767414289279,0.01107603,90285.0,90280.0,0.01107665]
[1767414289908,0.01107603,90285.0,90280.0,0.05672746]
[1767414290186,0.01107615,90284.0,90280.0,0.05672746]
[1767414291282,0.01107603,90285.0,90280.0,0.05672746]
[1767414292348,0.01107615,90284.0,90280.0,0.04565081]
[1767414292721,0.01107628,90283.0,90280.0,0.04565081]
[1767414293771,0.01107615,90284.0,90280.0,0.04565081]
[1767414296567,0.01107603,90285.0,90280.0,0.05672746]
[1767414296822,0.01107591,90286.0,90280.0,0.05672746]
[1767414296823,0.01107591,90286.0,90281.0,0.01107652]
[1767414297033,0.01107591,90286.0,90281.0,0.05672733]
[1767414297361,0.01107591,90286.0,90282.0,0.04565081]
[1767414297675,0.01107591,90286.0,90280.0,0.01107665]
[1767414297676,0.02015779,90287.0,90281.0,0.01107652]
[1767414297920,0.01107591,90286.0,90281.0,0.01107652]
[1767414298129,0.01107603,90285.0,90280.0,0.05672746]
[1767414298340,0.02015779,90287.0,90285.0,0.000999]
[1767414298562,0.02015779,90287.0,90281.0,0.01107652]
[1767414298766,0.009082,90287.0,90283.0,0.01107628]
[1767414299684,0.009082,90287.0,90284.0,0.01107615]
[1767414300646,0.009082,90287.0,90282.0,0.05672721]
[1767414301270,0.009082,90287.0,90283.0,0.01107628]
[1767414301475,0.02015779,90287.0,90283.0,0.01107628]
[1767414301634,0.02015779,90287.0,90282.0,0.05672721]
[1767414301866,0.01107591,90286.0,90282.0,0.04565081]
[1767414302090,0.01107603,90285.0,90282.0,0.04565081]
[1767414302345,0.01107591,90286.0,90282.0,0.04565081]
[1767414302907,0.01107603,90285.0,90282.0,0.04565081]
[1767414303153,0.01107603,90285.0,90280.0,0.05664562]
[1767414304052,0.01107615,90284.0,90280.0,0.04556897]
[1767414304271,0.01107628,90283.0,90280.0,0.04556897]
[1767414304817,0.06645807,90283.0,90280.0,0.04556897]
[1767414305015,0.01107628,90283.0,90280.0,0.04556897]
[1767414305901,0.06645698,90284.0,90280.0,0.04556897]
[1767414306262,0.01107591,90286.0,90284.0,0.000999]
[1767414306844,0.01107603,90285.0,90280.0,0.05664562]
[1767414307061,0.01107615,90284.0,90280.0,0.04556897]
[1767414307904,0.01107591,90286.0,90284.0,0.000999]
[1767414308610,0.01107603,90285.0,90280.0,0.05664562]
[1767414308818,0.01107591,90286.0,90281.0,0.01107652]
[1767414308958,0.01107603,90285.0,90280.0,0.05664562]
[1767414311113,0.01107615,90284.0,90280.0,0.04556897]
[1767414313620,0.01107603,90285.0,90280.0,0.05664562]
[1767414314988,0.01107615,90284.0,90280.0,0.04556897]
[1767414315168,0.01107628,90283.0,90280.0,0.04556897]
[1767414315375,0.06645584,90286.0,90281.0,0.01107652]
[1767414315606,0.01107603,90285.0,90280.0,0.05664562]
[1767414316226,0.01107615,90284.0,90280.0,0.04556897]
[1767414316385,0.01107603,90285.0,90280.0,0.04556897]
[1767414316570,0.01107615,90284.0,90280.0,0.04556897]
[1767414318391,0.01107628,90283.0,90280.0,0.04556897]
[1767414318592,0.01107615,90284.0,90280.0,0.04556897]
[1767414319409,0.01107628,90283.0,90280.0,0.04556897]
[1767414319610,0.01107628,90283.0,90278.0,0.01107689]
[1767414319830,0.01107628,90283.0,90278.0,0.05664586]
[1767414321258,0.01107615,90284.0,90279.0,0.01107677]
[1767414321775,0.01107615,90284.0,90278.0,0.04556897]
[1767414322138,0.01107628,90283.0,90278.0,0.05664586]
[1767414323038,0.0110764,90282.0,90278.0,0.04556897]
[1767414323242,0.0100774,90282.0,90278.0,0.04552492]
[1767414324440,0.01107628,90283.0,90278.0,0.05660181]
[1767414324841,0.01107652,90281.0,90278.0,0.04552492]
[1767414325043,0.0110764,90282.0,90277.0,0.01107701]
[1767414325545,0.01107652,90281.0,90276.0,0.01107714]
[1767414325979,0.0110764,90282.0,90276.0,0.01107714]
[1767414327003,0.01107652,90281.0,90277.0,0.01107701]
[1767414327204,0.01107652,90281.0,90276.0,0.01107714]
[1767414330207,0.01107652,90281.0,90276.0,0.05851963]
[1767414331212,0.01107628,90283.0,90278.0,0.05851938]
[1767414331368,0.01107628,90283.0,90279.0,0.04744249]
[1767414332393,0.0110764,90282.0,90279.0,0.04644349]
[1767414332615,0.01107652,90281.0,90277.0,0.04744249]